[Event "28th Hit Open-A 2024"]
[Site "Nova Gorica"]
[Date "2024.01.31"]
[Round "7.27"]
[White "Racnik, Tone"]
[Black "Herega, Nejc"]
[Result "0-1"]
[ECO "B38"]
[WhiteElo "1849"]
[BlackElo "2257"]
[Annotator "RC"]
[PlyCount "90"]
[EventDate "2024.01.22"]
[EventType "swiss"]
[EventCountry "SLO"]
[SourceTitle "playchess.com"]
[Source "ChessBase"]
[SourceQuality "1"]
[TimeControl "5400+30"]

1. e4 {[%emt 0:00:03]} c5 {[%emt 0:00:10]} 2. c4 {[%emt 0:00:09]} Nc6 {[%emt 0:00:12]} 3. Nf3 {[%emt 0:00:21]} g6 {[%emt 0:01:25]} 4. d4 {[%emt 0:00:47]} cxd4 {[%emt 0:01:01]} 5. Nxd4 {[%emt 0:00:15]} Bg7 {[%emt 0:00:06]} 6. Be3 {[%emt 0:01:04]} Nf6 {[%emt 0:00:39]} 7. Nc3 {[%emt 0:00:32]} d6 {[%emt 0:01:12]} 8. Be2 {[%emt 0:01:11]} O-O {[%emt 0:01:24]} 9. O-O {[%emt 0:00:32]} Nxd4 {[%emt 0:01:52]} 10. Bxd4 {[%emt 0:00:18]} a5 {[%emt 0:00:52]} 11. Rc1 {[%emt 0:06:59]} Bd7 {[%emt 0:00:36]} 12. Nd5 {[%emt 0:13:38]} Nxd5 {[%emt 0:05:41]} 13. Bxg7 {[%emt 0:04:12]} Ne3 {[%emt 0:05:45]} 14. Qd4 {[%emt 0:04:19]} Nxf1 {[%emt 0:01:25]} 15. Bxf8 {[%emt 0:00:29]} Qxf8 {[%emt 0:00:41]} 16. Rxf1 {[%emt 0:01:13]} Rc8 {[%emt 0:13:18]} 17. b3 {[%emt 0:10:17]} Bc6 {[%emt 0:05:46]} 18. a3 {[%emt 0:00:30]} Qg7 {[%emt 0:04:40]} 19. Qxg7+ {[%emt 0:01:50]} Kxg7 {[%emt 0:00:02]} 20. Bd3 {[%emt 0:00:07]} Kf6 {[%emt 0:02:44]} 21. f4 {[%emt 0:00:40]} e6 {[%emt 0:01:02]} 22. g4 {[%emt 0:11:36]} h6 {[%emt 0:03:05]} 23. h4 {[%emt 0:02:15]} Ke7 {[%emt 0:02:11]} 24. Kf2 {[%emt 0:02:55]} b6 {[%emt 0:03:47]} 25. Rc1 {[%emt 0:03:51]} Bb7 {[%emt 0:03:49]} 26. Rc2 {[%emt 0:00:09]} f6 {[%emt 0:02:47]} 27. Ke3 {[%emt 0:02:17]} Rg8 {[%emt 0:01:49]} 28. b4 {[%emt 0:07:15]} axb4 {[%emt 0:01:51]} 29. axb4 {[%emt 0:00:07]} Ra8 {[%emt 0:00:26]} 30. c5 {[%emt 0:00:14]} dxc5 {[%emt 0:02:55]} 31. bxc5 {[%emt 0:00:12]} bxc5 {[%emt 0:00:45]} 32. Rxc5 {[%emt 0:00:04]} Kd6 {[%emt 0:00:50]} 33. Rc3 {[%emt 0:01:42]} Ra1 {[%emt 0:02:44]} 34. Be2 {[%emt 0:01:12]} Rh1 {[%emt 0:01:54]} 35. h5 {[%emt 0:03:16]} Rh3+ {[%emt 0:03:29]} 36. Bf3 {[%emt 0:00:11]} gxh5 {[%emt 0:00:49]} 37. gxh5 {[%emt 0:00:03]} f5 {[%emt 0:00:35]} 38. e5+ {[%emt 0:00:22]} Kd7 {[%emt 0:00:06]} 39. Rd3+ {[%emt 0:01:43]} Ke7 {[%emt 0:02:48]} 40. Kf2 {[%emt 0:00:42]} Bxf3 {[%emt 0:00:32]} 41. Rxf3 {[%emt 0:00:05]} Rxh5 {[%emt 0:00:12]} 42. Kg3 {[%emt 0:00:28]} Rh1 {[%emt 0:00:54]} 43. Rf2 {[%emt 0:01:13]} Rg1+ {[%emt 0:02:11]} 44. Rg2 {[%emt 0:00:28]} Rxg2+ {[%emt 0:01:38]} 45. Kxg2 {[%emt 0:00:05]} Kd7 {[%emt 0:00:24]} 0-1

[Event "28th Hit Open-A 2024"]
[Site "Nova Gorica"]
[Date "2024.01.31"]
[Round "7.28"]
[White "Garsky, Vladyslav"]
[Black "Novak, Rok"]
[Result "1/2-1/2"]
[ECO "B13"]
[WhiteElo "2186"]
[BlackElo "1777"]
[Annotator "RC"]
[PlyCount "83"]
[EventDate "2024.01.22"]
[EventType "swiss"]
[EventCountry "SLO"]
[SourceTitle "playchess.com"]
[Source "ChessBase"]
[SourceQuality "1"]
[TimeControl "5400+30"]

1. e4 {[%emt 0:01:59]} c6 {[%emt 0:00:09]} 2. d4 {[%emt 0:00:05]} d5 {[%emt 0:00:07]} 3. exd5 {[%emt 0:00:17]} cxd5 {[%emt 0:00:14]} 4. Bd3 {[%emt 0:00:06]} Nc6 {[%emt 0:00:11]} 5. c3 {[%emt 0:00:35]} Nf6 {[%emt 0:00:12]} 6. Nf3 {[%emt 0:00:30]} Bg4 {[%emt 0:00:25]} 7. h3 {[%emt 0:00:07]} Bh5 {[%emt 0:00:09]} 8. Bf4 {[%emt 0:00:39]} e6 {[%emt 0:00:29]} 9. Nbd2 {[%emt 0:00:22]} Bd6 {[%emt 0:00:25]} 10. Bxd6 {[%emt 0:00:06]} Qxd6 {[%emt 0:00:07]} 11. O-O {[%emt 0:00:08]} O-O {[%emt 0:00:22]} 12. Re1 {[%emt 0:00:07]} Rab8 {[%emt 0:02:15]} 13. a3 {[%emt 0:04:21]} Rfc8 {[%emt 0:02:22]} 14. Qb1 {[%emt 0:00:42]} Bg6 {[%emt 0:02:47]} 15. Bxg6 {[%emt 0:02:44]} hxg6 {[%emt 0:00:08]} 16. Qd3 {[%emt 0:00:02]} b5 {[%emt 0:05:44]} 17. b4 {[%emt 0:00:43]} Nd7 {[%emt 0:05:59]} 18. Nb3 {[%emt 0:05:00]} e5 {[%emt 0:03:02]} 19. dxe5 {[%emt 0:01:06]} Ncxe5 {[%emt 0:01:16]} 20. Nxe5 {[%emt 0:02:16]} Nxe5 {[%emt 0:00:08]} 21. Qg3 {[%emt 0:01:12]} Re8 {[%emt 0:02:56]} 22. Nc5 {[%emt 0:02:48]} Nc4 {[%emt 0:07:26]} 23. Qxd6 {[%emt 0:02:58]} Nxd6 {[%emt 0:00:09]} 24. Red1 {[%emt 0:05:20]} Ne4 {[%emt 0:01:52]} 25. Nxe4 {[%emt 0:01:50]} dxe4 {[%emt 0:00:24]} 26. Rd7 {[%emt 0:00:15]} Rbc8 {[%emt 0:14:16]} 27. Rxa7 {[%emt 0:04:37]} Rxc3 {[%emt 0:00:31]} 28. Rd1 {[%emt 0:00:19]} Rd3 {[%emt 0:06:19]} 29. Rc1 {[%emt 0:11:45]} e3 {[%emt 0:04:16]} 30. fxe3 {[%emt 0:00:24]} Rdxe3 {[%emt 0:01:03]} 31. Rc5 {[%emt 0:03:29]} Re1+ {[%emt 0:09:54]} 32. Kf2 {[%emt 0:03:27]} R8e2+ {[%emt 0:02:44]} 33. Kf3 {[%emt 0:00:17]} Re3+ {[%emt 0:00:16]} 34. Kf4 {[%emt 0:00:21]} R3e2 {[%emt 0:06:50]} 35. Rg5 {[%emt 0:02:23]} Kh7 {[%emt 0:01:43]} 36. Kf3 {[%emt 0:01:50]} f5 {[%emt 0:01:55]} 37. h4 {[%emt 0:08:08]} Re3+ {[%emt 0:01:33]} 38. Kf2 {[%emt 0:00:37]} R1e2+ {[%emt 0:00:26]} 39. Kg1 {[%emt 0:00:17]} Kh6 {[%emt 0:01:16]} 40. Rb7 {[%emt 0:03:27]} Re4 {[%emt 0:01:42]} 41. Rg3 {[%emt 0:05:39]} Re1+ {[%emt 0:00:55]} 42. Kf2 {[%emt 0:00:02]} 1/2-1/2

[Event "28th Hit Open-A 2024"]
[Site "Nova Gorica"]
[Date "2024.01.31"]
[Round "7.30"]
[White "Guid, Taja"]
[Black "Labrovic, Jakov"]
[Result "1/2-1/2"]
[ECO "C50"]
[WhiteElo "1698"]
[BlackElo "1925"]
[Annotator "NA RC"]
[PlyCount "118"]
[EventDate "2024.01.22"]
[EventType "swiss"]
[EventCountry "SLO"]
[SourceTitle "playchess.com"]
[Source "ChessBase"]
[SourceQuality "1"]
[TimeControl "5400+30"]

1. e4 {[%emt 0:00:01]} e5 {[%emt 0:00:03]} 2. Bc4 {[%emt 0:00:06]} Nc6 {[%emt 0:00:14]} 3. Nc3 {[%emt 0:00:08]} Bc5 {[%emt 0:00:24]} 4. d3 {[%emt 0:00:06]} d6 {[%emt 0:00:45]} 5. Nf3 {[%emt 0:21:19]} h6 {[%emt 0:00:44]} 6. O-O {[%emt 0:00:25]} Nf6 {[%emt 0:00:20]} 7. h3 {[%emt 0:00:45]} a6 {[%emt 0:02:10]} 8. a3 {[%emt 0:01:24]} Be6 {[%emt 0:00:20]} 9. Nd5 {[%emt 0:01:51]} Bxd5 {[%emt 0:00:30]} 10. Bxd5 {[%emt 0:00:45]} Nxd5 {[%emt 0:00:08]} 11. exd5 {[%emt 0:00:04]} Ne7 {[%emt 0:00:12]} 12. b4 {[%emt 0:02:38]} Ba7 {[%emt 0:00:22]} 13. c4 {[%emt 0:00:11]} O-O {[%emt 0:00:13]} 14. Be3 {[%emt 0:05:43]} f5 {[%emt 0:00:10]} 15. Bxa7 {[%emt 0:01:32]} Rxa7 {[%emt 0:00:02]} 16. Re1 {[%emt 0:02:39]} g5 {[%emt 0:00:50]} 17. Nh2 {[%emt 0:01:16]} Qe8 {[%emt 0:00:18]} 18. a4 {[%emt 0:06:43]} Qg6 {[%emt 0:02:10]} 19. f3 {[%emt 0:05:33]} h5 {[%emt 0:01:07]} 20. d4 {[%emt 0:01:34]} Qf6 {[%emt 0:02:03]} 21. dxe5 {[%emt 0:00:31]} dxe5 {[%emt 0:00:15]} 22. Qe2 {[%emt 0:06:37]} Ng6 {[%emt 0:00:28]} 23. Qe3 {[%emt 0:01:19]} Raa8 {[%emt 0:00:11]} 24. Rad1 {[%emt 0:01:58]} Rae8 {[%emt 0:00:34]} 25. Qc5 {[%emt 0:04:09]} Qd6 {[%emt 0:08:03]} 26. Qxd6 {[%emt 0:01:29]} cxd6 {[%emt 0:00:01]} 27. Rd2 {[%emt 0:06:49]} Rc8 {[%emt 0:00:18]} 28. Rc1 {[%emt 0:00:14]} b6 {[%emt 0:00:38]} 29. Nf1 {[%emt 0:01:01]} Rc7 {[%emt 0:01:09]} 30. Rdc2 {[%emt 0:07:26]} Ne7 {[%emt 0:01:17]} 31. g4 {[%emt 0:06:14]} hxg4 {[%emt 0:00:36]} 32. hxg4 {[%emt 0:00:06]} fxg4 {[%emt 0:05:13]} 33. fxg4 {[%emt 0:00:04]} Rf4 {[%emt 0:00:26]} 34. Ne3 {[%emt 0:00:09]} Re4 {[%emt 0:02:05]} 35. Kf2 {[%emt 0:01:23]} Ng6 {[%emt 0:02:09]} 36. Nf5 {[%emt 0:01:54]} Nh4 {[%emt 0:02:06]} 37. Nxd6 {[%emt 0:01:39]} Rxg4 {[%emt 0:00:51]} 38. Rg1 {[%emt 0:05:29]} Rf4+ {[%emt 0:00:17]} 39. Ke3 {[%emt 0:00:36]} Nf3 {[%emt 0:03:16]} 40. Rg3 {[%emt 0:00:29]} g4 {[%emt 0:01:24]} 41. Rcg2 {[%emt 0:02:37]} Rg7 {[%emt 0:00:18]} 42. Ne4 {[%emt 0:01:08]} Nh4 {[%emt 0:01:32]} 43. c5 {[%emt 0:03:01]} bxc5 {[%emt 0:02:28]} 44. bxc5 {[%emt 0:00:02]} Nf5+ {[%emt 0:00:39]} 45. Kd3 {[%emt 0:00:18]} Nxg3 {[%emt 0:00:35]} 46. Rxg3 {[%emt 0:00:01]} Kf8 {[%emt 0:01:25]} 47. c6 {[%emt 0:00:27]} Ke8 {[%emt 0:03:20]} 48. d6 {[%emt 0:01:02]} Rh7 {[%emt 0:01:29]} 49. c7 {[%emt 0:01:03]} Kd7 {[%emt 0:02:39]} 50. Rxg4 {[%emt 0:00:36]} Rh3+ {[%emt 0:01:43]} 51. Ke2 {[%emt 0:00:13]} Rxg4 {[%emt 0:01:29]} 52. Nf6+ {[%emt 0:00:01]} Kc8 {[%emt 0:00:30]} 53. Nxg4 {[%emt 0:00:02]} Rh8 {[%emt 0:08:31]} 54. Nf6 {[%emt 0:00:32]} Kb7 {[%emt 0:00:49]} 55. Nd5 {[%emt 0:00:34]} Kc6 {[%emt 0:04:04]} 56. Ne7+ {[%emt 0:00:05]} Kd7 {[%emt 0:00:19]} 57. Ke3 {[%emt 0:00:40]} Kxd6 {[%emt 0:06:45]} 58. c8=Q {[%emt 0:00:05]} Rxc8 {[%emt 0:00:15]} 59. Nxc8+ {[%emt 0:00:01]} Kc7 {[%emt 0:00:06]} 1/2-1/2

[Event "28th Hit Open-A 2024"]
[Site "Nova Gorica"]
[Date "2024.01.31"]
[Round "7.31"]
[White "Mazzi, Leonardo"]
[Black "Horvath, Andras"]
[Result "1-0"]
[ECO "C54"]
[WhiteElo "1647"]
[BlackElo "1901"]
[Annotator "NA COMBH"]
[PlyCount "49"]
[EventDate "2024.01.22"]
[EventType "swiss"]
[EventCountry "SLO"]
[SourceTitle "playchess.com"]
[Source "ChessBase"]
[SourceQuality "1"]
[TimeControl "5400+30"]

1. e4 {[%emt 0:00:03]} e5 {[%emt 0:00:16]} 2. Nf3 {[%emt 0:00:24]} Nc6 {[%emt 0:00:07]} 3. Bc4 {[%emt 0:00:04]} Nf6 {[%emt 0:00:06]} 4. d3 {[%emt 0:00:08]} Bc5 {[%emt 0:00:05]} 5. c3 {[%emt 0:00:16]} d6 {[%emt 0:00:03]} 6. Nbd2 {[%emt 0:00:17]} a6 {[%emt 0:00:49]} 7. Bb3 {[%emt 0:00:10]} Ba7 {[%emt 0:00:42]} 8. h3 {[%emt 0:00:29]} O-O {[%emt 0:01:45]} 9. Nf1 {[%emt 0:00:35]} Ne7 {[%emt 0:03:11]} 10. Ng3 {[%emt 0:00:21]} Ng6 {[%emt 0:00:17]} 11. O-O {[%emt 0:01:10]} h6 {[%emt 0:03:59]} 12. Re1 {[%emt 0:00:35]} Re8 {[%emt 0:04:33]} 13. d4 {[%emt 0:00:44]} exd4 {[%emt 0:03:42]} 14. cxd4 {[%emt 0:01:17]} Be6 {[%emt 0:06:32]} 15. Bc2 {[%emt 0:00:26]} c6 {[%emt 0:17:35]} 16. Be3 {[%emt 0:00:43]} Qc7 {[%emt 0:07:15]} 17. Qd2 {[%emt 0:01:51]} Rad8 {[%emt 0:02:40]} 18. a3 {[%emt 0:01:41]} Bb8 {[%emt 0:03:57]} 19. Rac1 {[%emt 0:02:38]} d5 {[%emt 0:04:31]} 20. e5 {[%emt 0:01:49]} Nd7 {[%emt 0:04:51]} 21. Bb1 {[%emt 0:02:50]} Ndf8 {[%emt 0:01:59]} 22. Nh5 {[%emt 0:00:53]} Qe7 {[%emt 0:05:49]} 23. Bxh6 {[%emt 0:02:35]} gxh6 {[%emt 0:01:39]} 24. Qxh6 {[%emt 0:00:25]} f5 {[%emt 0:00:55]} 25. Nf6+ {[%emt 0:00:54]} 1-0

[Event "28th Hit Open-A 2024"]
[Site "Nova Gorica"]
[Date "2024.01.31"]
[Round "7.32"]
[White "Hozjan, Erik"]
[Black "Ivsek, Cveto"]
[Result "0-1"]
[ECO "B11"]
[WhiteElo "1897"]
[BlackElo "1711"]
[Annotator "NA COMBH"]
[PlyCount "58"]
[EventDate "2024.01.22"]
[EventType "swiss"]
[EventCountry "SLO"]
[SourceTitle "playchess.com"]
[Source "ChessBase"]
[SourceQuality "1"]
[TimeControl "5400+30"]

1. e4 {[%emt 0:00:02]} c6 {[%emt 0:00:31]} 2. Nc3 {[%emt 0:00:10]} d5 {[%emt 0:00:36]} 3. Nf3 {[%emt 0:00:06]} dxe4 {[%emt 0:02:58]} 4. Nxe4 {[%emt 0:00:08]} Bg4 {[%emt 0:05:02]} 5. h3 {[%emt 0:01:29]} Bxf3 {[%emt 0:01:18]} 6. Qxf3 {[%emt 0:00:06]} e6 {[%emt 0:01:27]} 7. c3 {[%emt 0:01:21]} Nd7 {[%emt 0:01:50]} 8. d4 {[%emt 0:03:57]} Ngf6 {[%emt 0:00:46]} 9. Bd3 {[%emt 0:01:00]} Nxe4 {[%emt 0:00:55]} 10. Bxe4 {[%emt 0:00:09]} Nf6 {[%emt 0:00:36]} 11. Bc2 {[%emt 0:00:04]} h6 {[%emt 0:02:14]} 12. Bb3 {[%emt 0:03:35]} Bd6 {[%emt 0:02:49]} 13. g4 {[%emt 0:00:17]} Nd5 {[%emt 0:01:25]} 14. Bd2 {[%emt 0:01:39]} Qf6 {[%emt 0:09:08]} 15. Bxd5 {[%emt 0:09:16]} cxd5 {[%emt 0:00:46]} 16. Qxf6 {[%emt 0:00:06]} gxf6 {[%emt 0:00:12]} 17. f4 {[%emt 0:00:36]} Ke7 {[%emt 0:05:37]} 18. Kf2 {[%emt 0:00:08]} h5 {[%emt 0:02:29]} 19. Kf3 {[%emt 0:02:38]} Rh7 {[%emt 0:01:37]} 20. Rag1 {[%emt 0:00:42]} hxg4+ {[%emt 0:03:00]} 21. hxg4 {[%emt 0:00:12]} Rah8 {[%emt 0:00:13]} 22. Rxh7 {[%emt 0:00:14]} Rxh7 {[%emt 0:00:07]} 23. Be1 {[%emt 0:09:59]} Rh2 {[%emt 0:00:45]} 24. b4 {[%emt 0:00:15]} b5 {[%emt 0:06:22]} 25. g5 {[%emt 0:01:03]} f5 {[%emt 0:08:49]} 26. g6 {[%emt 0:00:09]} fxg6 {[%emt 0:00:22]} 27. Rxg6 {[%emt 0:00:04]} Kf7 {[%emt 0:00:09]} 28. Bg3 {[%emt 0:00:50]} Rh8 {[%emt 0:03:14]} 29. Rg5 {[%emt 0:01:13]} Be7 {[%emt 0:00:32]} 0-1

[Event "28th Hit Open-A 2024"]
[Site "Nova Gorica"]
[Date "2024.01.31"]
[Round "7.33"]
[White "Milicevic, Zoran"]
[Black "Atakay, Mustafa"]
[Result "1/2-1/2"]
[ECO "B10"]
[WhiteElo "1550"]
[BlackElo "1889"]
[Annotator "NA COMBH"]
[PlyCount "55"]
[EventDate "2024.01.22"]
[EventType "swiss"]
[EventCountry "SLO"]
[SourceTitle "playchess.com"]
[Source "ChessBase"]
[SourceQuality "1"]
[TimeControl "5400+30"]

1. e4 {[%emt 0:00:01]} c6 {[%emt 0:05:12]} 2. Nf3 {[%emt 0:01:22]} d5 {[%emt 0:00:06]} 3. exd5 {[%emt 0:00:26]} cxd5 {[%emt 0:00:05]} 4. g3 {[%emt 0:00:07]} Nf6 {[%emt 0:00:35]} 5. Bg2 {[%emt 0:00:09]} Bg4 {[%emt 0:01:02]} 6. O-O {[%emt 0:00:40]} e6 {[%emt 0:00:07]} 7. c3 {[%emt 0:00:16]} Bd6 {[%emt 0:03:35]} 8. Qa4+ {[%emt 0:02:13]} Qd7 {[%emt 0:00:53]} 9. Qxd7+ {[%emt 0:01:40]} Nbxd7 {[%emt 0:00:06]} 10. d4 {[%emt 0:00:18]} O-O {[%emt 0:03:50]} 11. Re1 {[%emt 0:00:56]} Rab8 {[%emt 0:01:36]} 12. a4 {[%emt 0:03:03]} a5 {[%emt 0:01:39]} 13. Na3 {[%emt 0:00:57]} Bxa3 {[%emt 0:05:00]} 14. Rxa3 {[%emt 0:00:20]} b5 {[%emt 0:00:26]} 15. axb5 {[%emt 0:10:18]} Rxb5 {[%emt 0:00:25]} 16. Ne5 {[%emt 0:00:44]} Ra8 {[%emt 0:05:14]} 17. Nxd7 {[%emt 0:01:58]} Nxd7 {[%emt 0:00:06]} 18. c4 {[%emt 0:00:24]} Rb4 {[%emt 0:18:58]} 19. cxd5 exd5 20. Bxd5 {[%emt 0:07:02]} Rc8 {[%emt 0:00:00]} 21. Rxa5 {[%emt 0:03:12]} Nf6 {[%emt 0:04:21]} 22. Ra8 {[%emt 0:05:13]} Rxa8 {[%emt 0:03:13]} 23. Bxa8 {[%emt 0:00:11]} Rxd4 {[%emt 0:00:42]} 24. Kg2 {[%emt 0:05:20]} Be6 {[%emt 0:02:12]} 25. Bf3 {[%emt 0:01:02]} Rb4 {[%emt 0:00:49]} 26. Rd1 {[%emt 0:00:54]} h6 {[%emt 0:01:06]} 27. Rd6 {[%emt 0:03:48]} Rb3 {[%emt 0:05:33]} 28. Bd2 {[%emt 0:06:26]} 1/2-1/2

[Event "28th Hit Open-A 2024"]
[Site "Nova Gorica"]
[Date "2024.01.31"]
[Round "7.34"]
[White "Pagnutti, Lorenzo"]
[Black "Petrovcic, Cvetko"]
[Result "1-0"]
[ECO "C54"]
[WhiteElo "1859"]
[BlackElo "1611"]
[Annotator "NA RC"]
[PlyCount "120"]
[EventDate "2024.01.22"]
[EventType "swiss"]
[EventCountry "SLO"]
[SourceTitle "playchess.com"]
[Source "ChessBase"]
[SourceQuality "1"]
[TimeControl "5400+30"]

1. e4 {[%emt 0:00:01]} e5 {[%emt 0:03:03]} 2. Nf3 {[%emt 0:00:09]} Nc6 {[%emt 0:00:08]} 3. Bc4 {[%emt 0:00:07]} Bc5 {[%emt 0:00:31]} 4. c3 {[%emt 0:00:22]} Nf6 {[%emt 0:00:29]} 5. d3 {[%emt 0:00:14]} d6 {[%emt 0:03:11]} 6. O-O {[%emt 0:00:20]} Bg4 {[%emt 0:00:50]} 7. Re1 {[%emt 0:01:20]} Qd7 {[%emt 0:03:06]} 8. a4 {[%emt 0:01:39]} a5 {[%emt 0:01:13]} 9. Nbd2 {[%emt 0:00:25]} O-O {[%emt 0:00:36]} 10. Nf1 {[%emt 0:00:12]} Ne7 {[%emt 0:01:00]} 11. Bg5 {[%emt 0:00:51]} Nh5 {[%emt 0:01:03]} 12. h3 {[%emt 0:02:29]} Be6 {[%emt 0:07:40]} 13. Nxe5 {[%emt 0:05:40]} dxe5 {[%emt 0:02:17]} 14. Qxh5 {[%emt 0:00:31]} Ng6 {[%emt 0:00:33]} 15. Qe2 {[%emt 0:08:42]} Nf4 {[%emt 0:05:16]} 16. Bxf4 {[%emt 0:00:37]} exf4 {[%emt 0:00:04]} 17. Bxe6 {[%emt 0:01:57]} fxe6 {[%emt 0:00:09]} 18. d4 {[%emt 0:00:34]} f3 {[%emt 0:00:17]} 19. gxf3 {[%emt 0:01:04]} Bb6 {[%emt 0:00:43]} 20. e5 {[%emt 0:04:11]} Rf4 {[%emt 0:00:10]} 21. Nh2 {[%emt 0:02:09]} Raf8 {[%emt 0:00:10]} 22. Qf1 {[%emt 0:00:57]} Qf7 {[%emt 0:00:27]} 23. Qg2 {[%emt 0:01:06]} c5 {[%emt 0:00:25]} 24. dxc5 {[%emt 0:05:26]} Bxc5 {[%emt 0:00:36]} 25. b3 {[%emt 0:03:03]} Qf5 {[%emt 0:00:28]} 26. Rad1 {[%emt 0:02:38]} Rh4 {[%emt 0:01:48]} 27. Rd7 {[%emt 0:01:00]} g6 {[%emt 0:01:03]} 28. Ng4 {[%emt 0:00:27]} Qxf3 {[%emt 0:01:23]} 29. Nf6+ {[%emt 0:00:36]} Rxf6 {[%emt 0:00:28]} 30. exf6 {[%emt 0:00:05]} Qxc3 {[%emt 0:03:00]} 31. Red1 {[%emt 0:03:46]} Qxf6 {[%emt 0:09:54]} 32. Rd8+ {[%emt 0:00:25]} Kg7 {[%emt 0:00:51]} 33. Qxb7+ {[%emt 0:02:41]} Kh6 {[%emt 0:00:20]} 34. Qg2 {[%emt 0:01:10]} Rh5 {[%emt 0:01:09]} 35. R8d3 {[%emt 0:03:38]} Rf5 {[%emt 0:02:41]} 36. R1d2 {[%emt 0:01:41]} Qa1+ {[%emt 0:02:27]} 37. Kh2 {[%emt 0:01:33]} Qe1 {[%emt 0:01:51]} 38. Qg1 {[%emt 0:04:19]} Qe5+ {[%emt 0:03:40]} 39. Kh1 {[%emt 0:02:21]} Rg5 {[%emt 0:00:23]} 40. Qf1 {[%emt 0:02:56]} Qe4+ {[%emt 0:00:41]} 41. f3 {[%emt 0:04:27]} Qf5 {[%emt 0:00:15]} 42. Rg2 {[%emt 0:01:30]} Rh5 {[%emt 0:04:09]} 43. Rg4 {[%emt 0:00:55]} Kg7 {[%emt 0:03:51]} 44. Kg2 {[%emt 0:00:40]} Rxh3 {[%emt 0:01:32]} 45. Rd7+ {[%emt 0:02:11]} Kg8 {[%emt 0:00:31]} 46. Rd8+ {[%emt 0:01:00]} Kf7 {[%emt 0:02:42]} 47. Kxh3 {[%emt 0:01:02]} h5 {[%emt 0:00:09]} 48. Qe2 {[%emt 0:04:23]} Be7 {[%emt 0:01:15]} 49. Rdd4 {[%emt 0:01:02]} hxg4+ {[%emt 0:03:03]} 50. fxg4 {[%emt 0:00:05]} Qg5 {[%emt 0:01:25]} 51. Re4 {[%emt 0:01:35]} Qd5 {[%emt 0:01:43]} 52. Qf1+ {[%emt 0:02:55]} Kg7 {[%emt 0:01:09]} 53. Re3 {[%emt 0:00:39]} e5 {[%emt 0:01:09]} 54. Qa1 {[%emt 0:01:00]} Bd6 {[%emt 0:02:59]} 55. Qf1 {[%emt 0:00:52]} Bc5 {[%emt 0:00:50]} 56. Rc3 {[%emt 0:00:59]} e4 {[%emt 0:02:01]} 57. Qb5 {[%emt 0:01:02]} e3 {[%emt 0:01:12]} 58. Qxc5 {[%emt 0:01:30]} Qh1+ {[%emt 0:00:17]} 59. Kg3 {[%emt 0:00:05]} Qg1+ {[%emt 0:01:45]} 60. Kf3 {[%emt 0:00:04]} Qf2+ {[%emt 0:00:22]} 1-0

[Event "28th Hit Open-A 2024"]
[Site "Nova Gorica"]
[Date "2024.01.31"]
[Round "7.35"]
[White "Budai, Federico"]
[Black "Beber, Anja"]
[Result "1-0"]
[ECO "C60"]
[WhiteElo "1861"]
[BlackElo "1606"]
[Annotator "NA RC"]
[PlyCount "135"]
[EventDate "2024.01.22"]
[EventType "swiss"]
[EventCountry "SLO"]
[SourceTitle "playchess.com"]
[Source "ChessBase"]
[SourceQuality "1"]
[TimeControl "5400+30"]

1. e4 {[%emt 0:08:03]} e5 {[%emt 0:00:29]} 2. Nf3 {[%emt 0:00:06]} Nc6 {[%emt 0:00:16]} 3. Bb5 {[%emt 0:00:05]} Nge7 {[%emt 0:00:52]} 4. O-O {[%emt 0:01:31]} g6 {[%emt 0:00:33]} 5. c3 {[%emt 0:01:31]} Bg7 {[%emt 0:01:52]} 6. d4 {[%emt 0:02:11]} a6 {[%emt 0:03:25]} 7. Ba4 {[%emt 0:04:07]} b5 {[%emt 0:01:34]} 8. Bb3 {[%emt 0:00:33]} d6 {[%emt 0:11:09]} 9. Re1 {[%emt 0:08:27]} O-O {[%emt 0:00:45]} 10. h3 {[%emt 0:00:23]} h6 {[%emt 0:01:13]} 11. Nbd2 {[%emt 0:00:44]} exd4 {[%emt 0:04:33]} 12. cxd4 {[%emt 0:01:33]} Nxd4 {[%emt 0:00:23]} 13. Nxd4 {[%emt 0:02:12]} Bxd4 {[%emt 0:00:56]} 14. Nf3 {[%emt 0:00:36]} Bg7 {[%emt 0:00:11]} 15. Qe2 {[%emt 0:03:55]} Bb7 {[%emt 0:04:35]} 16. a4 {[%emt 0:00:53]} Bc6 {[%emt 0:03:55]} 17. Bf4 {[%emt 0:08:06]} g5 {[%emt 0:13:11]} 18. Bh2 {[%emt 0:23:57]} Ng6 {[%emt 0:00:43]} 19. Qc2 {[%emt 0:03:15]} bxa4 {[%emt 0:16:21]} 20. Bxf7+ {[%emt 0:08:31]} Rxf7 {[%emt 0:02:34]} 21. Qxc6 {[%emt 0:00:06]} Bxb2 {[%emt 0:01:14]} 22. Rxa4 {[%emt 0:00:07]} Ne7 {[%emt 0:22:35]} 23. Qb7 {[%emt 0:08:00]} Bg7 {[%emt 0:02:15]} 24. Rxa6 {[%emt 0:01:22]} Rxa6 {[%emt 0:00:37]} 25. Qxa6 {[%emt 0:00:04]} Ng6 {[%emt 0:02:24]} 26. Qc4 {[%emt 0:04:02]} Qd7 {[%emt 0:00:14]} 27. Bg3 {[%emt 0:02:28]} Kh7 {[%emt 0:01:27]} 28. Qc2 {[%emt 0:01:54]} Be5 {[%emt 0:01:17]} 29. Nxe5 {[%emt 0:02:24]} Nxe5 {[%emt 0:00:18]} 30. Bxe5 {[%emt 0:00:05]} dxe5 {[%emt 0:00:05]} 31. Rd1 {[%emt 0:00:16]} Qe7 {[%emt 0:00:30]} 32. Rd5 {[%emt 0:03:28]} Qf6 {[%emt 0:00:40]} 33. Qc5 {[%emt 0:00:21]} Re7 {[%emt 0:00:53]} 34. Qe3 {[%emt 0:01:28]} Qf4 {[%emt 0:01:06]} 35. Qxf4 {[%emt 0:00:27]} gxf4 {[%emt 0:00:30]} 36. f3 {[%emt 0:00:43]} Kg7 {[%emt 0:00:38]} 37. g3 {[%emt 0:00:10]} fxg3 {[%emt 0:00:42]} 38. Kg2 {[%emt 0:00:03]} Kf7 {[%emt 0:00:46]} 39. Rc5 {[%emt 0:00:23]} Kg6 {[%emt 0:01:11]} 40. Rc6+ {[%emt 0:00:23]} Kh5 {[%emt 0:01:02]} 41. Kxg3 {[%emt 0:00:33]} Rg7+ {[%emt 0:00:22]} 42. Kf2 {[%emt 0:00:15]} Re7 {[%emt 0:00:07]} 43. Ke3 {[%emt 0:01:04]} Kg5 {[%emt 0:00:17]} 44. Kf2 {[%emt 0:00:55]} Kh5 {[%emt 0:00:19]} 45. Kg3 {[%emt 0:00:20]} Rg7+ {[%emt 0:00:09]} 46. Kf2 {[%emt 0:00:10]} Re7 {[%emt 0:00:09]} 47. Rf6 {[%emt 0:00:53]} Kg5 {[%emt 0:00:43]} 48. Rc6 {[%emt 0:00:22]} Kh5 {[%emt 0:00:11]} 49. Kg2 {[%emt 0:00:58]} Rg7+ {[%emt 0:00:43]} 50. Kh2 {[%emt 0:00:24]} Re7 {[%emt 0:00:16]} 51. Kg3 {[%emt 0:00:17]} Rg7+ {[%emt 0:00:07]} 52. Kf2 {[%emt 0:00:03]} Re7 {[%emt 0:00:10]} 53. Ke3 {[%emt 0:00:47]} Kg5 {[%emt 0:00:26]} 54. h4+ {[%emt 0:00:53]} Kxh4 {[%emt 0:00:15]} 55. Rxh6+ {[%emt 0:00:03]} Kg5 {[%emt 0:00:08]} 56. Rc6 {[%emt 0:00:06]} Kh5 {[%emt 0:01:18]} 57. f4 {[%emt 0:00:22]} exf4+ {[%emt 0:00:35]} 58. Kxf4 {[%emt 0:00:03]} Rf7+ {[%emt 0:00:19]} 59. Ke5 {[%emt 0:00:34]} Kg5 {[%emt 0:00:11]} 60. Kd5 {[%emt 0:00:45]} Re7 {[%emt 0:01:02]} 61. e5 {[%emt 0:00:27]} Kf5 {[%emt 0:00:17]} 62. Rf6+ {[%emt 0:00:03]} Kg5 {[%emt 0:00:15]} 63. Rf1 {[%emt 0:00:08]} Kg6 {[%emt 0:00:29]} 64. e6 {[%emt 0:00:18]} Kg7 {[%emt 0:00:14]} 65. Ke5 {[%emt 0:00:10]} Kg6 {[%emt 0:00:43]} 66. Rg1+ {[%emt 0:00:07]} Kh6 {[%emt 0:00:59]} 67. Kf6 {[%emt 0:00:08]} Re8 {[%emt 0:00:43]} 68. Rh1# {[%emt 0:00:04]} 1-0